[Event "Gideon Japhet ACP Open 2018"]
[Site "Jerusalem"]
[Date "2018.07.02"]
[Round "2"]
[White "Golberg, Igor"]
[Black "Raiko, Yossi"]
[Result "1-0"]
[ECO "E73"]
[WhiteElo "2132"]
[BlackElo "1887"]
[Annotator "NA"]
[PlyCount "93"]
[EventDate "2018.07.01"]
[EventType "swiss"]
[EventCountry "ISR"]
[SourceTitle "playchess.com"]
[Source "ChessBase"]
[SourceQuality "1"]
[TimeControl "40/5400+30:1800+30"]

1. d4 {[%emt 0:02:23]} Nf6 {[%emt 0:00:00]} 2. c4 {[%emt 0:00:05]} g6 {[%emt 0:00:00]} 3. Nc3 {[%emt 0:00:04]} Bg7 {[%emt 0:00:00]} 4. e4 {[%emt 0:00:06]} d6 {[%emt 0:00:00]} 5. Be2 {[%emt 0:00:05]} O-O {[%emt 0:00:26]} 6. Bg5 {[%emt 0:00:05]} h6 {[%emt 0:00:51]} 7. Be3 {[%emt 0:00:06]} e5 {[%emt 0:02:45]} 8. d5 {[%emt 0:00:08]} a5 {[%emt 0:00:47]} 9. Qd2 {[%emt 0:00:07]} Kh7 {[%emt 0:00:38]} 10. h4 {[%emt 0:00:02]} Ng4 {[%emt 0:04:31] E73: King's Indian: Averbakh Variation without 6...c5} (10... Na6 11. h5 g5 12. f3 c6 13. g4 cxd5 14. cxd5 Nd7 15. Bc4 Nac5 16. Nge2 Nb6 17. Bb5 Bd7 18. Bxc5 dxc5 {1-0 (40) Khismatullin,D (2632)-El Adnani,M (2448) Riadh 2017}) 11. Bxg4 {[%emt 0:00:11]} Bxg4 {[%emt 0:00:05]} 12. f3 {[%emt 0:00:05]} Bc8 {[%emt 0:01:41]} 13. h5 {[%emt 0:00:06]} g5 {[%emt 0:01:31]} 14. g4 {[%emt 0:00:02]} Na6 {[%emt 0:02:19]} 15. Nge2 {[%emt 0:00:40]} b6 $146 {[%emt 0:03:30]} ({Predecessor:} 15... f6 16. O-O Rf7 17. Nb5 b6 18. b3 {1-0 (48) Konieczynski,P (1903)-Sciborowski,M (2006) Poronin 2017}) 16. O-O {[%emt 0:00:35]} Nc5 {[%emt 0:05:34]} 17. b3 {[%emt 0:00:10]} Rg8 {[%emt 0:02:02]} 18. Ng3 {[%emt 0:01:04]} Bf8 {[%emt 0:00:27]} 19. Qc2 {[%emt 0:00:44]} f6 {[%emt 0:00:46]} 20. a3 {[%emt 0:00:21]} Bd7 {[%emt 0:11:14]} 21. b4 {[%emt 0:00:26]} Nb7 {[%emt 0:02:42]} 22. Nf5 {[%emt 0:05:09]} Qe8 {[%emt 0:00:56]} 23. Nb5 {[%emt 0:01:48]} Qd8 {[%emt 0:10:04]} 24. Qf2 {[%emt 0:01:46]} Bg7 {[%emt 0:05:58]} 25. Rfc1 {[%emt 0:00:37]} Rf8 {[%emt 0:02:02]} 26. Nxc7 {[%emt 0:15:31]} Qxc7 {[%emt 0:00:27]} 27. Bxb6 {[%emt 0:00:07]} Qb8 {[%emt 0:01:01]} 28. Nxg7 {[%emt 0:00:47]} Kxg7 {[%emt 0:00:06]} 29. c5 {[%emt 0:00:02]} axb4 {[%emt 0:20:33]} 30. axb4 {[%emt 0:05:32]} Rxa1 {[%emt 0:00:22]} 31. Rxa1 {[%emt 0:00:01]} dxc5 {[%emt 0:04:31]} 32. bxc5 {[%emt 0:00:03]} Qc8 {[%emt 0:04:46]} 33. Ra7 {[%emt 0:02:47]} Rf7 {[%emt 0:00:46]} 34. Qa2 {[%emt 0:00:18]} Bxg4 {[%emt 0:02:24]} 35. Ra8 {[%emt 0:00:13]} Qd7 {[%emt 0:02:19]} 36. c6 $18 {[%emt 0:00:02]} ({Lieber nicht} 36. fxg4 Qxg4+ 37. Qg2 Qd1+ 38. Qf1 (38. Kh2 Qxh5+ 39. Kg1 Qd1+ 40. Kh2 Qd4 $15) 38... Qd4+ 39. Kh2 Nxc5 $11) 36... Qd6 {[%emt 0:00:21]} 37. fxg4 {[%emt 0:00:59]} Qb4 {[%emt 0:00:31]} 38. Qf2 {[%emt 0:01:14]} Qxe4 {[%emt 0:00:55]} 39. Qf5 {[%emt 0:00:21]} Qe1+ {[%emt 0:08:46]} 40. Kg2 {[%emt 0:01:46]} Qd2+ {[%emt 0:00:06]} 41. Bf2 {[%emt 0:30:30]} Qxd5+ {[%emt 0:30:09]} 42. Kh2 {[%emt 0:00:07]} Nd8 {[%emt 0:00:22]} 43. Qg6+ {[%emt 0:00:23]} Kf8 {[%emt 0:00:09]} 44. Rxd8+ {[%emt 0:01:33]} Qxd8 {[%emt 0:00:11]} 45. Bc5+ {[%emt 0:00:04]} Re7 {[%emt 0:00:50]} 46. Qxf6+ {[%emt 0:00:15]} Ke8 {[%emt 0:00:24]} 47. Qh8+ {[%emt 0:00:02]} 1-0

[Event "Gideon Japhet ACP Open 2018"]
[Site "Jerusalem"]
[Date "2018.07.02"]
[Round "2"]
[White "Gorodetzky, Matan"]
[Black "Kobo, Ori"]
[Result "1/2-1/2"]
[ECO "B06"]
[WhiteElo "2060"]
[BlackElo "2508"]
[Annotator "ChessBase"]
[PlyCount "95"]
[EventDate "2018.07.01"]
[EventType "swiss"]
[EventCountry "ISR"]
[SourceTitle "playchess.com"]
[Source "ChessBase"]
[SourceQuality "1"]
[TimeControl "40/5400+30:1800+30"]

1. e4 {[%emt 0:00:11]} g6 {[%emt 0:00:01]} 2. d4 {[%emt 0:00:51]} Bg7 {[%emt 0:00:08]} 3. h3 {[%emt 0:00:39]} c5 {[%emt 0:06:28]} 4. c3 {[%emt 0:00:58]} cxd4 {[%emt 0:09:13]} 5. cxd4 {[%emt 0:00:07]} d5 {[%emt 0:00:05]} 6. e5 {[%emt 0:01:04]} Nc6 {[%emt 0:00:08]} 7. Nc3 {[%emt 0:01:15]} e6 {[%emt 0:02:09]} 8. Nf3 {[%emt 0:09:22]} Nge7 {[%emt 0:02:02]} 9. g4 {[%emt 0:06:24]} O-O {[%emt 0:05:28]} 10. Be2 {[%emt 0:06:26]} f6 {[%emt 0:00:27]} 11. exf6 {[%emt 0:04:31]} Rxf6 {[%emt 0:00:22]} 12. Be3 {[%emt 0:11:10]} a6 {[%emt 0:05:18]} 13. O-O {[%emt 0:09:02]} b5 {[%emt 0:00:13]} 14. Rc1 {[%emt 0:02:47]} Bd7 {[%emt 0:05:51]} 15. Qd2 {[%emt 0:04:45]} Qf8 {[%emt 0:07:43]} 16. Kg2 {[%emt 0:02:40]} h6 {[%emt 0:01:07]} 17. Ne5 {[%emt 0:03:01]} Nxe5 {[%emt 0:00:59]} 18. dxe5 {[%emt 0:00:02]} Rf7 {[%emt 0:00:08]} 19. f4 {[%emt 0:04:27]} Qb8 {[%emt 0:05:20]} 20. Bf3 {[%emt 0:04:37]} g5 {[%emt 0:08:44]} 21. fxg5 {[%emt 0:00:55]} Ng6 {[%emt 0:05:01]} 22. Bxd5 {[%emt 0:06:06]} Rxf1 {[%emt 0:20:40]} 23. Rxf1 {[%emt 0:00:15]} hxg5 {[%emt 0:02:03]} 24. Be4 {[%emt 0:06:43]} Nxe5 {[%emt 0:02:20]} 25. Bd4 {[%emt 0:04:04]} Qd8 {[%emt 0:02:07]} 26. Rd1 {[%emt 0:01:37]} Bc6 {[%emt 0:03:22]} 27. Bxc6 {[%emt 0:02:54]} Nxc6 {[%emt 0:00:01]} 28. Bxg7 {[%emt 0:00:11]} Qxd2+ {[%emt 0:04:52]} 29. Rxd2 {[%emt 0:00:01]} Kxg7 {[%emt 0:00:01]} 30. Rd7+ {[%emt 0:02:35]} Kf6 {[%emt 0:00:25]} 31. Ne4+ {[%emt 0:00:29]} Ke5 {[%emt 0:00:02]} 32. Nxg5 {[%emt 0:00:17]} Rc8 {[%emt 0:00:58]} 33. Kg3 {[%emt 0:03:12]} Nb4 {[%emt 0:01:56]} 34. Nf3+ {[%emt 0:01:41]} Kf6 {[%emt 0:00:01]} 35. g5+ {[%emt 0:00:31]} Kg6 {[%emt 0:00:12]} 36. Rd6 {[%emt 0:00:23]} Kf5 {[%emt 0:00:40]} 37. a3 {[%emt 0:00:33]} Nd5 {[%emt 0:00:01]} 38. Rxa6 {[%emt 0:00:32]} e5 {[%emt 0:00:36]} 39. Rd6 {[%emt 0:00:13]} Nf4 {[%emt 0:00:25]} 40. Rf6+ {[%emt 0:00:48]} Ke4 {[%emt 0:00:01]} 41. Rb6 {[%emt 0:30:56]} Rc2 {[%emt 0:04:07]} 42. Nh4 {[%emt 0:00:00]} Rxb2 {[%emt 0:01:06]} 43. g6 {[%emt 0:00:00]} Rb1 {[%emt 0:01:17]} 44. Ra6 {[%emt 0:00:00]} Ra1 {[%emt 0:06:28]} 45. Nf3 {[%emt 0:00:00]} Kf5 {[%emt 0:02:20]} 46. Nh4+ {[%emt 0:00:00]} Ke4 {[%emt 0:00:24]} 47. Kh2 {[%emt 0:00:01]} Ra2+ {[%emt 0:01:04]} 48. Kg3 {[%emt 0:01:19]} 1/2-1/2

[Event "Gideon Japhet ACP Open 2018"]
[Site "Jerusalem"]
[Date "2018.07.02"]
[Round "2"]
[White "Zlotogorsky, Itay"]
[Black "Shvayger, Yuliya"]
[Result "0-1"]
[ECO "B24"]
[WhiteElo "1822"]
[BlackElo "2409"]
[Annotator "ChessBase"]
[PlyCount "86"]
[EventDate "2018.07.01"]
[EventType "swiss"]
[EventCountry "ISR"]
[SourceTitle "playchess.com"]
[Source "ChessBase"]
[SourceQuality "1"]
[TimeControl "40/5400+30:1800+30"]

1. e4 {[%emt 0:00:00]} c5 {[%emt 0:00:00]} 2. Nc3 {[%emt 0:00:06]} Nc6 {[%emt 0:00:04]} 3. g3 {[%emt 0:00:32]} g6 {[%emt 0:00:11]} 4. Bg2 {[%emt 0:00:28]} Bg7 {[%emt 0:00:04]} 5. f4 {[%emt 0:00:53]} d6 {[%emt 0:06:11]} 6. d3 {[%emt 0:00:40]} e6 {[%emt 0:00:24]} 7. Nf3 {[%emt 0:00:48]} Nge7 {[%emt 0:00:21]} 8. O-O {[%emt 0:01:51]} O-O {[%emt 0:00:14]} 9. Be3 {[%emt 0:01:31]} Nd4 {[%emt 0:00:45]} 10. Qd2 {[%emt 0:02:09]} Rb8 {[%emt 0:04:36]} 11. a4 {[%emt 0:01:55]} Nec6 {[%emt 0:09:18]} 12. Rab1 {[%emt 0:11:24]} a6 {[%emt 0:04:10]} 13. Ne2 {[%emt 0:01:49]} b5 {[%emt 0:05:38]} 14. axb5 {[%emt 0:02:31]} axb5 {[%emt 0:00:11]} 15. Nfxd4 {[%emt 0:04:23]} Nxd4 {[%emt 0:04:28]} 16. c3 {[%emt 0:05:16]} Nxe2+ {[%emt 0:06:20]} 17. Qxe2 {[%emt 0:00:25]} b4 {[%emt 0:00:07]} 18. e5 {[%emt 0:03:57]} Bb7 {[%emt 0:10:54]} 19. d4 {[%emt 0:04:19]} Bxg2 {[%emt 0:02:19]} 20. Qxg2 {[%emt 0:01:04]} bxc3 {[%emt 0:10:16]} 21. bxc3 {[%emt 0:03:07]} Rxb1 {[%emt 0:00:52]} 22. Rxb1 {[%emt 0:00:18]} dxe5 {[%emt 0:00:37]} 23. fxe5 {[%emt 0:02:23]} Qa5 {[%emt 0:02:10]} 24. Qb2 {[%emt 0:05:48]} h5 {[%emt 0:01:15]} 25. dxc5 {[%emt 0:03:00]} Bxe5 {[%emt 0:01:47]} 26. Bd4 {[%emt 0:01:56]} Bg7 {[%emt 0:03:18]} 27. Bxg7 {[%emt 0:04:31]} Kxg7 {[%emt 0:00:14]} 28. Qb4 {[%emt 0:01:07]} Qc7 {[%emt 0:00:49]} 29. Qd4+ {[%emt 0:02:37]} e5 {[%emt 0:05:29]} 30. Qd6 {[%emt 0:03:36]} Rc8 {[%emt 0:00:12]} 31. Rb5 {[%emt 0:02:43]} Qxd6 {[%emt 0:03:37]} 32. cxd6 {[%emt 0:00:07]} Kf6 {[%emt 0:00:03]} 33. d7 {[%emt 0:07:47]} Rd8 {[%emt 0:00:25]} 34. Kf2 {[%emt 0:03:41]} Rxd7 {[%emt 0:00:15]} 35. Ke3 {[%emt 0:00:28]} Kf5 {[%emt 0:07:53]} 36. Rb2 {[%emt 0:03:08]} Rc7 {[%emt 0:05:25]} 37. Kd3 {[%emt 0:01:12]} e4+ {[%emt 0:00:53]} 38. Kd4 {[%emt 0:00:25]} Rd7+ {[%emt 0:00:06]} 39. Kc4 {[%emt 0:03:42]} e3 {[%emt 0:00:17]} 40. Kc5 {[%emt 0:02:37]} Ke4 {[%emt 0:02:29]} 41. Kc6 {[%emt 0:31:34]} Re7 {[%emt 0:30:16]} 42. c4 {[%emt 0:02:34]} Kd3 {[%emt 0:00:10]} 43. c5 {[%emt 0:00:19]} e2 {[%emt 0:00:07]} 0-1

[Event "Gideon Japhet ACP Open 2018"]
[Site "Jerusalem"]
[Date "2018.07.02"]
[Round "3"]
[White "Muzychuk, Mariya"]
[Black "Parkhov, Yair"]
[Result "1-0"]
[ECO "B18"]
[WhiteElo "2521"]
[BlackElo "2364"]
[Annotator "ChessBase"]
[PlyCount "77"]
[EventDate "2018.07.01"]
[EventType "swiss"]
[EventCountry "ISR"]
[SourceTitle "playchess.com"]
[Source "ChessBase"]
[SourceQuality "1"]
[TimeControl "40/5400+30:1800+30"]

1. e4 {[%emt 0:01:14]} c6 {[%emt 0:00:00]} 2. d4 {[%emt 0:00:21]} d5 {[%emt 0:00:00]} 3. Nc3 {[%emt 0:00:14]} dxe4 {[%emt 0:00:00]} 4. Nxe4 {[%emt 0:00:03]} Bf5 {[%emt 0:00:00]} 5. Ng3 {[%emt 0:00:04]} Bg6 {[%emt 0:00:04]} 6. h4 {[%emt 0:01:09]} h6 {[%emt 0:00:14]} 7. Nf3 {[%emt 0:00:03]} e6 {[%emt 0:00:07]} 8. Ne5 {[%emt 0:06:27]} Bh7 {[%emt 0:00:07]} 9. Bd3 {[%emt 0:01:19]} Bxd3 {[%emt 0:00:11]} 10. Qxd3 {[%emt 0:00:03]} Nf6 {[%emt 0:00:34]} 11. Bf4 {[%emt 0:01:19]} Qa5+ {[%emt 0:00:52]} 12. c3 {[%emt 0:01:15]} Qa6 {[%emt 0:00:12]} 13. Qf3 {[%emt 0:04:36]} Nbd7 {[%emt 0:15:14]} 14. Nxd7 {[%emt 0:00:59]} Nxd7 {[%emt 0:00:17]} 15. Ne4 {[%emt 0:00:06]} Nf6 {[%emt 0:19:25]} 16. Nd6+ {[%emt 0:13:32]} Bxd6 {[%emt 0:00:15]} 17. Bxd6 {[%emt 0:00:03]} Qb5 {[%emt 0:04:36]} 18. Be5 {[%emt 0:10:12]} Qd5 {[%emt 0:09:21]} 19. Qg3 {[%emt 0:04:06]} Qe4+ {[%emt 0:01:47]} 20. Kf1 {[%emt 0:00:49]} Nh5 {[%emt 0:01:19]} 21. Qh3 {[%emt 0:04:37]} O-O-O {[%emt 0:18:02]} 22. Re1 {[%emt 0:06:42]} Qg6 {[%emt 0:01:30]} 23. Qf3 {[%emt 0:04:54]} Rhf8 {[%emt 0:08:20]} 24. g4 {[%emt 0:04:34]} Nf6 {[%emt 0:00:08]} 25. Rg1 {[%emt 0:00:06]} Nd5 {[%emt 0:01:03]} 26. h5 {[%emt 0:21:01]} Qh7 {[%emt 0:04:16]} 27. Bh2 {[%emt 0:00:43]} Nc7 {[%emt 0:09:58]} 28. Qf4 {[%emt 0:00:56]} Na6 {[%emt 0:00:20]} 29. Re5 {[%emt 0:01:10]} Qb1+ {[%emt 0:01:45]} 30. Kg2 {[%emt 0:00:03]} Qxa2 {[%emt 0:00:08]} 31. b4 {[%emt 0:00:29]} Rd5 {[%emt 0:01:32]} 32. Rge1 {[%emt 0:04:38]} Rxe5 {[%emt 0:02:28]} 33. Rxe5 {[%emt 0:00:06]} b5 {[%emt 0:00:10]} 34. c4 {[%emt 0:01:27]} f6 {[%emt 0:01:17]} 35. cxb5 {[%emt 0:02:18]} Rd8 {[%emt 0:01:10]} 36. Rc5 {[%emt 0:00:52]} e5 {[%emt 0:00:13]} 37. Qf5+ {[%emt 0:00:27]} Kb8 {[%emt 0:00:32]} 38. bxa6 {[%emt 0:00:05]} Rxd4 {[%emt 0:00:09]} 39. Bxe5+ {[%emt 0:00:22]} 1-0

[Event "Gideon Japhet ACP Open 2018"]
[Site "Jerusalem"]
[Date "2018.07.02"]
[Round "3"]
[White "Gorodetzky, David"]
[Black "Agrest, Inna"]
[Result "1-0"]
[ECO "A05"]
[WhiteElo "2460"]
[BlackElo "2303"]
[Annotator "ChessBase"]
[PlyCount "81"]
[EventDate "2018.07.01"]
[EventType "swiss"]
[EventCountry "ISR"]
[SourceTitle "playchess.com"]
[Source "ChessBase"]
[SourceQuality "1"]
[TimeControl "40/5400+30:1800+30"]

1. Nf3 {[%emt 0:00:00]} Nf6 {[%emt 0:00:00]} 2. b3 {[%emt 0:00:00]} g6 {[%emt 0:00:10]} 3. Bb2 {[%emt 0:00:00]} Bg7 {[%emt 0:00:03]} 4. g3 {[%emt 0:00:00]} O-O {[%emt 0:00:14]} 5. Bg2 {[%emt 0:00:03]} d6 {[%emt 0:00:38]} 6. d4 {[%emt 0:00:32]} Nbd7 {[%emt 0:05:01]} 7. O-O {[%emt 0:02:17]} c5 {[%emt 0:04:21]} 8. c4 {[%emt 0:03:11]} Rb8 {[%emt 0:02:10]} 9. Qc2 {[%emt 0:24:25]} a6 {[%emt 0:02:28]} 10. Rd1 {[%emt 0:11:07]} Qc7 {[%emt 0:07:00]} 11. Nc3 {[%emt 0:11:59]} b5 {[%emt 0:05:40]} 12. cxb5 {[%emt 0:05:55]} axb5 {[%emt 0:00:17]} 13. Rac1 {[%emt 0:00:33]} c4 {[%emt 0:12:11]} 14. d5 {[%emt 0:10:40]} b4 {[%emt 0:04:00]} 15. Na4 {[%emt 0:05:35]} c3 {[%emt 0:00:54]} 16. Ba1 {[%emt 0:05:40]} Nc5 {[%emt 0:12:24]} 17. Nd4 {[%emt 0:00:41]} Bh6 {[%emt 0:09:43]} 18. e3 {[%emt 0:03:36]} Bg4 {[%emt 0:03:50]} 19. Re1 {[%emt 0:02:27]} e5 {[%emt 0:14:22]} 20. dxe6 {[%emt 0:02:00]} fxe6 {[%emt 0:02:22]} 21. a3 {[%emt 0:04:30]} e5 {[%emt 0:02:03]} 22. Nc6 {[%emt 0:00:10]} Bf5 {[%emt 0:01:35]} 23. Qa2 {[%emt 0:01:40]} Nd3 {[%emt 0:02:58]} 24. Nxb8 {[%emt 0:00:33]} Qxb8 {[%emt 0:02:53]} 25. axb4 {[%emt 0:01:05]} c2 {[%emt 0:01:13]} 26. Qxc2 {[%emt 0:01:27]} Nxe1 {[%emt 0:02:07]} 27. Qc4+ {[%emt 0:00:01]} Kg7 {[%emt 0:00:55]} 28. Rxe1 {[%emt 0:00:02]} Rc8 {[%emt 0:00:10]} 29. Bc6 {[%emt 0:01:07]} Be4 {[%emt 0:01:58]} 30. b5 {[%emt 0:00:10]} Bd5 {[%emt 0:00:22]} 31. Qc3 {[%emt 0:01:25]} Bxb3 {[%emt 0:00:39]} 32. Qxb3 {[%emt 0:01:08]} Rxc6 {[%emt 0:00:03]} 33. Qe6 {[%emt 0:01:55]} Qxb5 {[%emt 0:01:05]} 34. Qe7+ {[%emt 0:00:01]} Kg8 {[%emt 0:00:09]} 35. Nc3 {[%emt 0:00:04]} Rxc3 {[%emt 0:00:56]} 36. Bxc3 {[%emt 0:00:29]} Nd5 {[%emt 0:00:01]} 37. Qe6+ {[%emt 0:00:34]} Kg7 {[%emt 0:00:16]} 38. Bxe5+ {[%emt 0:00:29]} dxe5 {[%emt 0:00:08]} 39. Qxe5+ {[%emt 0:00:05]} Kf7 {[%emt 0:01:14]} 40. Rd1 {[%emt 0:00:23]} Bg7 {[%emt 0:00:48]} 41. Qxd5+ {[%emt 0:30:07]} 1-0

[Event "Gideon Japhet ACP Open 2018"]
[Site "Jerusalem"]
[Date "2018.07.02"]
[Round "3"]
[White "Kantsler, Boris"]
[Black "Cohen Revivo, Shoham"]
[Result "1-0"]
[ECO "A40"]
[WhiteElo "2422"]
[BlackElo "2248"]
[Annotator "NA"]
[PlyCount "71"]
[EventDate "2018.07.01"]
[EventType "swiss"]
[EventCountry "ISR"]
[SourceTitle "playchess.com"]
[Source "ChessBase"]
[SourceQuality "1"]
[TimeControl "40/5400+30:1800+30"]

1. d4 {[%emt 0:01:14]} e6 {[%emt 0:00:00]} 2. c4 {[%emt 0:00:38]} b6 {[%emt 0:00:03]} 3. Nc3 {[%emt 0:01:42]} Bb7 {[%emt 0:00:12]} 4. Nf3 {[%emt 0:00:05]} Bb4 {[%emt 0:00:44]} 5. e3 {[%emt 0:01:44]} f5 {[%emt 0:00:09]} 6. Qb3 {[%emt 0:01:50]} Bxc3+ {[%emt 0:03:24]} 7. Qxc3 {[%emt 0:00:22]} Nf6 {[%emt 0:00:07]} 8. Be2 {[%emt 0:02:44]} O-O {[%emt 0:00:46]} 9. b3 {[%emt 0:00:59]} Ne4 {[%emt 0:00:28]} 10. Qc2 {[%emt 0:00:09]} d6 {[%emt 0:00:42]} 11. Bb2 {[%emt 0:00:50]} Nd7 {[%emt 0:00:09]} 12. O-O {[%emt 0:02:48]} Ndf6 {[%emt 0:01:36]} 13. Nd2 {[%emt 0:04:32]} Nxd2 {[%emt 0:04:59]} 14. Qxd2 {[%emt 0:00:05]} Ne4 {[%emt 0:00:06]} 15. Qc1 {[%emt 0:00:11]} Qg5 {[%emt 0:01:31]} 16. f3 {[%emt 0:00:44]} Nf6 {[%emt 0:00:03]} 17. Qd2 {[%emt 0:01:49]} Rae8 {[%emt 0:02:06]} 18. Rae1 {[%emt 0:01:39]} c5 {[%emt 0:03:10]} 19. dxc5 {[%emt 0:08:50]} dxc5 {[%emt 0:00:10]} 20. Be5 {[%emt 0:01:08]} Rd8 {[%emt 0:06:24]} 21. Qc3 {[%emt 0:00:19]} Rd7 {[%emt 0:00:17]} 22. Rd1 {[%emt 0:04:33]} Rfd8 {[%emt 0:00:08]} 23. Rxd7 {[%emt 0:00:06]} Rxd7 {[%emt 0:00:16]} 24. Rd1 {[%emt 0:00:04]} Rxd1+ {[%emt 0:01:04]} 25. Bxd1 {[%emt 0:01:00]} Nd7 {[%emt 0:00:08]} 26. Bd6 {[%emt 0:05:17]} Qf6 {[%emt 0:04:51]} 27. Qxf6 {[%emt 0:01:12]} Nxf6 {[%emt 0:01:08]} 28. Bb8 {[%emt 0:07:17]} Nd7 {[%emt 0:04:47]} 29. Bc7 {[%emt 0:09:26]} Kf7 {[%emt 0:05:21]} 30. Kf2 {[%emt 0:00:57]} e5 {[%emt 0:00:36]} 31. h3 {[%emt 0:07:09]} Ke6 {[%emt 0:09:22]} 32. g4 {[%emt 0:00:31]} g6 {[%emt 0:02:30]} 33. Kg3 {[%emt 0:04:08]} Bc6 {[%emt 0:02:57]} 34. Bc2 {[%emt 0:03:59]} b5 {[%emt 0:11:54]} 35. Bd3 {[%emt 0:07:37]} b4 {[%emt 0:00:54]} 36. g5 {[%emt 0:02:28] Kd5} 1-0

[Event "Gideon Japhet ACP Open 2018"]
[Site "Jerusalem"]
[Date "2018.07.02"]
[Round "3"]
[White "Kudischewitsch, David"]
[Black "Solomon, Asif"]
[Result "1-0"]
[ECO "A45"]
[WhiteElo "2356"]
[BlackElo "2184"]
[Annotator "NA"]
[PlyCount "118"]
[EventDate "2018.07.01"]
[EventType "swiss"]
[EventCountry "ISR"]
[SourceTitle "playchess.com"]
[Source "ChessBase"]
[SourceQuality "1"]
[TimeControl "40/5400+30:1800+30"]

1. d4 {[%emt 0:00:00]} Nf6 {[%emt 0:00:00]} 2. c3 {[%emt 0:00:00]} g6 {[%emt 0:01:07]} 3. Bf4 {[%emt 0:00:00]} Bg7 {[%emt 0:00:35]} 4. e3 {[%emt 0:00:00]} d6 {[%emt 0:00:43]} 5. h3 {[%emt 0:00:00]} O-O {[%emt 0:00:09]} 6. Nf3 {[%emt 0:00:00]} c5 {[%emt 0:02:10]} 7. Bh2 {[%emt 0:02:01]} b6 {[%emt 0:07:50]} 8. Be2 {[%emt 0:00:25]} Bb7 {[%emt 0:00:38]} 9. O-O {[%emt 0:00:05]} Nbd7 {[%emt 0:02:35]} 10. Qb3 {[%emt 0:00:12]} Qc7 {[%emt 0:09:22]} 11. a4 {[%emt 0:00:05]} a6 {[%emt 0:03:25]} 12. Na3 {[%emt 0:00:08]} Rfb8 {[%emt 0:04:10]} 13. Rfd1 {[%emt 0:01:29]} Ne4 {[%emt 0:08:52]} 14. d5 {[%emt 0:00:07]} Rd8 {[%emt 0:02:22]} 15. Qc2 {[%emt 0:00:15]} Ndf6 {[%emt 0:02:34]} 16. Qb3 {[%emt 0:03:36]} Bc8 {[%emt 0:06:26]} 17. Ne1 {[%emt 0:02:41]} Ne8 {[%emt 0:05:27]} 18. Nd3 {[%emt 0:07:06]} e5 {[%emt 0:04:14]} 19. dxe6 {[%emt 0:00:19]} Bxe6 {[%emt 0:02:23]} 20. Qc2 {[%emt 0:00:03]} Qb7 {[%emt 0:01:43]} 21. Nf4 {[%emt 0:00:49]} d5 {[%emt 0:02:21]} 22. c4 {[%emt 0:02:22]} Bf5 {[%emt 0:10:23]} 23. g4 {[%emt 0:03:01]} Nxf2 {[%emt 0:00:21]} 24. gxf5 {[%emt 0:00:05]} Nxd1 {[%emt 0:00:19]} 25. Rxd1 {[%emt 0:00:02]} dxc4 {[%emt 0:09:11]} 26. fxg6 {[%emt 0:00:28]} hxg6 {[%emt 0:00:33]} 27. Bxc4 {[%emt 0:01:50]} Qe7 {[%emt 0:04:31]} 28. Rf1 {[%emt 0:03:35]} Qxe3+ {[%emt 0:02:20]} 29. Kh1 {[%emt 0:00:01]} Nf6 {[%emt 0:02:03]} 30. Qxg6 {[%emt 0:01:28]} Qe4+ {[%emt 0:01:38]} 31. Qxe4 {[%emt 0:00:08]} Nxe4 {[%emt 0:00:01]} 32. Bd5 {[%emt 0:02:28]} Nd2 {[%emt 0:01:39]} 33. Rf2 {[%emt 0:01:32]} Bxb2 {[%emt 0:01:07]} 34. Nb1 {[%emt 0:00:16]} Nxb1 {[%emt 0:01:52]} 35. Rxb2 {[%emt 0:02:17]} Nc3 {[%emt 0:00:26]} 36. Bxa8 {[%emt 0:00:14]} Rxa8 {[%emt 0:00:05]} 37. Rxb6 {[%emt 0:00:37]} Nxa4 {[%emt 0:00:05]} 38. Rc6 {[%emt 0:00:07]} a5 {[%emt 0:01:15]} 39. Nd3 {[%emt 0:01:11]} Rd8 {[%emt 0:00:18]} 40. Nxc5 {[%emt 0:03:09]} Rd1+ {[%emt 0:00:11]} 41. Bg1 {[%emt 0:30:09]} Rc1 {[%emt 0:30:50]} 42. Rc8+ {[%emt 0:00:30]} Kh7 {[%emt 0:00:09]} 43. Rc7 {[%emt 0:00:03]} Nxc5 {[%emt 0:00:00]} 44. Rxc5 {[%emt 0:00:00]} Rxc5 {[%emt 0:00:00]} 45. Bxc5 {[%emt 0:00:00]} Kg6 {[%emt 0:00:00]} 46. Kg2 {[%emt 0:00:00]} Kh5 {[%emt 0:00:00]} 47. Be7 {[%emt 0:00:00]} a4 {[%emt 0:00:00]} 48. Ba3 {[%emt 0:00:00]} Kh4 {[%emt 0:00:00]} 49. Bc1 {[%emt 0:00:00]} Kh5 {[%emt 0:00:00]} 50. Kg3 {[%emt 0:00:00]} f5 {[%emt 0:00:00]} 51. Kf3 {[%emt 0:00:00]} Kh4 {[%emt 0:00:00]} 52. Kg2 {[%emt 0:00:00]} Kh5 {[%emt 0:00:00]} 53. Kg3 {[%emt 0:00:00]} Kg6 {[%emt 0:00:00]} 54. Kh4 {[%emt 0:00:00]} Kf6 {[%emt 0:00:00]} 55. Kh5 {[%emt 0:00:00]} Ke5 {[%emt 0:00:00]} 56. Kg5 {[%emt 0:00:00]} Ke4 {[%emt 0:00:00]} 57. h4 {[%emt 0:00:00]} f4 {[%emt 0:00:00]} 58. Bxf4 {[%emt 0:00:00]} a3 {[%emt 0:00:00]} 59. Bc1 {[%emt 0:00:00]} Kd5 1-0